fUST/lending_fUST_20251010
["ID","MTS","AMOUNT","RATE_DAILY","PERIOD"]
[390488298,1760062249104,-500.0,0.00016712,2]
[390488300,1760062249113,-500.60525948,0.00016712,2]
[390488302,1760062249123,-527.83,0.00016712,2]
[390488304,1760062249133,-240.08097401,0.00016712,2]
[390488306,1760062249144,-531.14,0.00016712,2]
[390488308,1760062249154,-594.27,0.00016712,2]
[390488310,1760062249164,-502.44828813,0.00016712,2]
[390488312,1760062249173,-500.0,0.00016712,2]
[390488314,1760062249183,-500.0,0.00016712,2]
[390488316,1760062249192,-500.0,0.00016712,2]
[390488318,1760062249201,-151.0,0.00016712,2]
[390488320,1760062249211,-501.73644491,0.00016712,2]
[390488322,1760062249220,-500.0,0.00016712,2]
[390488324,1760062249229,-151.0,0.00016712,2]
[390488325,1760062249238,-500.0,0.00016712,2]
[390488327,1760062249248,-500.0,0.00016712,2]
[390488329,1760062249257,-159.590917,0.00016712,2]
[390488331,1760062249266,-500.0,0.00016712,2]
[390488333,1760062249275,-501.35374469,0.00016712,2]
[390488335,1760062249284,-500.0,0.00016712,2]
[390488337,1760062249293,-244.37532,0.00016712,2]
[390488339,1760062249302,-500.0,0.00016712,2]
[390488341,1760062249311,-500.71369986,0.00016712,2]
[390488343,1760062249320,-1001.96,0.00016712,2]
[390488345,1760062249329,-500.0,0.00016712,2]
[390488347,1760062249338,-501.33157775,0.00016712,2]
[390488349,1760062249350,-500.0,0.00016712,2]
[390488351,1760062249364,-500.0,0.00016712,2]
[390488352,1760062249374,-501.03965201,0.00016712,2]
[390488354,1760062249382,-500.0,0.00016712,2]
[390488356,1760062249392,-1252.45,0.00016712,2]
[390488358,1760062249401,-585.01,0.00016712,2]
[390488360,1760062249410,-503.3023207,0.00016712,2]
[390488361,1760062249419,-500.0,0.00016712,2]
[390488362,1760062249428,-500.0,0.00016712,2]
[390488363,1760062249436,-875.11,0.00016712,2]
[390488364,1760062249445,-500.0,0.00016712,2]
[390488365,1760062249454,-500.0,0.00016712,2]
[390488366,1760062249462,-2256.89,0.00016712,2]
[390488367,1760062249471,-504.10252175,0.00016712,2]
[390488368,1760062249480,-501.09182636,0.00016712,2]
[390488369,1760062249488,-502.12305727,0.00016712,2]
[390488370,1760062249499,-500.0,0.00016712,2]
[390488371,1760062249507,-500.0,0.00016712,2]
[390488372,1760062249516,-500.0,0.00016712,2]
[390488373,1760062249525,-500.0,0.00016712,2]
[390488374,1760062249534,-500.0,0.00016712,2]
[390488375,1760062249543,-4501.37,0.00016712,2]
[390488376,1760062249552,-500.0,0.00016712,2]
[390488377,1760062249561,-500.0,0.00016712,2]
[390488378,1760062249569,-500.0,0.00016712,2]
[390488379,1760062249578,-509.80328601,0.00016712,2]
[390488380,1760062249587,-501.93253675,0.00016712,2]
[390488381,1760062249596,-500.0,0.00016712,2]
[390488382,1760062249604,-740.47,0.00016712,2]
[390488383,1760062249613,-3315.68,0.00016712,2]
[390488384,1760062249621,-500.0,0.00016712,2]
[390488386,1760062249630,-500.0,0.00016712,2]
[390488387,1760062249639,-501.5660037,0.00016712,2]
[390488389,1760062249648,-500.0,0.00016712,2]
[390488391,1760062249657,-500.0,0.00016712,2]
[390488393,1760062249666,-500.0,0.00016712,2]
[390488395,1760062249675,-500.0,0.00016712,2]
[390488397,1760062249684,-1305.48,0.00016712,2]
[390488399,1760062249693,-501.87926337,0.00016712,2]
[390488401,1760062249702,-500.0,0.00016712,2]
[390488403,1760062249711,-500.0,0.00016712,2]
[390488405,1760062249720,-500.0,0.00016712,2]
[390488407,1760062249729,-688.76,0.00016712,2]
[390488409,1760062249738,-500.0,0.00016712,2]
[390488411,1760062249747,-3718.85,0.00016712,2]
[390488413,1760062249756,-500.0,0.00016712,2]
[390488415,1760062249765,-866.24,0.00016712,2]
[390488417,1760062249774,-246.05984314,0.00016712,2]
[390488419,1760062249783,-503.19870999,0.00016712,2]
[390488421,1760062249791,-500.0,0.00016712,2]
[390488423,1760062249801,-547.86,0.00016712,2]
[390488425,1760062249809,-500.0,0.00016712,2]
[390488427,1760062249818,-502.17725709,0.00016712,2]
[390488429,1760062249827,-501.81590937,0.00016712,2]
[390488431,1760062249836,-500.0,0.00016712,2]
[390488433,1760062249846,-500.0,0.00016712,2]
[390488435,1760062249855,-500.0,0.00016712,2]
[390488437,1760062249864,-500.82750566,0.00016712,2]
[390488439,1760062249873,-500.0,0.00016712,2]
[390488441,1760062249882,-502.10171528,0.00016712,2]
[390488443,1760062249891,-500.0,0.00016712,2]
[390488445,1760062249899,-1530.51,0.00016712,2]
[390488446,1760062249908,-500.0,0.00016712,2]
[390488449,1760062249917,-560.0,0.00016712,2]
[390488450,1760062249926,-643.65,0.00016712,2]
[390488452,1760062249935,-500.0,0.00016712,2]
[390488454,1760062249944,-591.26,0.00016712,2]
[390488457,1760062249953,-500.0,0.00016712,2]
[390488459,1760062249962,-178.05335612,0.00016712,2]
[390488460,1760062249972,-501.00529747,0.00016712,2]
[390488462,1760062249981,-500.0,0.00016712,2]
[390488464,1760062249990,-445.02304004,0.00016712,2]
[390488466,1760062249999,-500.0,0.00016712,2]
[390488468,1760062250008,-500.0,0.00016712,2]
[390488470,1760062250017,-619.79,0.00016712,2]
[390488472,1760062250026,-500.0,0.00016712,2]
[390488474,1760062250035,-500.0,0.00016712,2]
[390488476,1760062250044,-151.0,0.00016712,2]
[390488478,1760062250054,-173.62795,0.00016712,2]
[390488480,1760062250063,-151.0,0.00016712,2]
[390488482,1760062250072,-173.62795,0.00016712,2]
[390488484,1760062250081,-501.55696603,0.00016712,2]
[390488486,1760062250091,-1403.92,0.00016712,2]
[390488488,1760062250100,-500.0,0.00016712,2]
[390488490,1760062250110,-502.25366704,0.00016712,2]
[390488492,1760062250119,-173.62795,0.00016712,2]
[390488494,1760062250128,-553.39,0.00016712,2]
[390488496,1760062250141,-173.62795,0.00016712,2]
[390488498,1760062250150,-787.69,0.00016712,2]
[390488500,1760062250159,-173.62795,0.00016712,2]
[390488502,1760062250167,-173.62795,0.00016712,2]
[390488504,1760062250178,-500.0,0.00016712,2]
[390488506,1760062250187,-173.62795,0.00016712,2]
[390488508,1760062250196,-173.627951,0.00016712,2]
[390488510,1760062250205,-598.14865491,0.00016712,2]
[390488512,1760062250216,-500.0,0.00016712,2]
[390488514,1760062250225,-501.93488945,0.00016712,2]
[390488516,1760062250234,-500.0,0.00016712,2]
[390488518,1760062250242,-500.0,0.00016712,2]
[390488520,1760062250251,-1406.28,0.00016712,2]
[390488522,1760062250260,-500.0,0.00016712,2]
[390488538,1760062250269,-500.0,0.00016712,2]
[390488540,1760062250406,-500.0,0.00016712,2]
[390488542,1760062250416,-500.0,0.00016712,2]
[390488544,1760062250425,-501.64638071,0.00016712,2]
[390488546,1760062250434,-687.31,0.00016712,2]
[390488548,1760062250443,-503.84759013,0.00016712,2]
[390488550,1760062250452,-500.0,0.00016712,2]
[390488552,1760062250460,-500.0,0.00016712,2]
[390488554,1760062250470,-151.0,0.00016712,2]
[390488556,1760062250479,-151.0,0.00016712,2]
[390488558,1760062250488,-500.65017267,0.00016712,2]
[390488560,1760062250499,-151.0,0.00016712,2]
[390488562,1760062250508,-500.86053499,0.00016712,2]
[390488564,1760062250517,-151.0,0.00016712,2]
[390488566,1760062250526,-500.0,0.00016712,2]
[390488568,1760062250535,-519.6,0.00016712,2]
[390488570,1760062250544,-500.0,0.00016712,2]
[390488572,1760062250553,-500.0,0.00016712,2]
[390488574,1760062250562,-500.0,0.00016712,2]
[390488576,1760062250570,-151.0,0.00016712,2]
[390488578,1760062250580,-151.0,0.00016712,2]
[390488580,1760062250589,-503.5626042,0.00016712,2]
[390488582,1760062250598,-500.0,0.00016712,2]
[390488584,1760062250607,-2471.41,0.00016712,2]
[390488586,1760062250617,-151.0,0.00016712,2]
[390488588,1760062250626,-151.0,0.00016712,2]
[390488590,1760062250635,-151.0,0.00016712,2]
[390488592,1760062250644,-151.0,0.00016712,2]
[390488594,1760062250653,-194.001707,0.00016712,2]
[390488596,1760062250662,-500.0,0.00016712,2]
[390488598,1760062250671,-502.11183188,0.00016712,2]
[390488600,1760062250680,-500.0,0.00016712,2]
[390488602,1760062250689,-500.0,0.00016712,2]
[390488604,1760062250698,-500.0,0.00016712,2]
[390488606,1760062250707,-500.0,0.00016712,2]
[390488608,1760062250717,-500.0,0.00016712,2]
[390488610,1760062250726,-501.56151148,0.00016712,2]
[390488612,1760062250735,-1763.79,0.00016712,2]
[390488615,1760062250745,-500.54616081,0.00016712,2]
[390488616,1760062250754,-529.78508243,0.00016712,2]
[390488618,1760062250763,-500.0,0.00016712,2]
[390488620,1760062250772,-153.128417,0.00016712,2]
[390488622,1760062250781,-600.0,0.00016766,2]
[390488624,1760062250790,-500.0,0.00016773,2]
[390488626,1760062250800,-500.0,0.00016773,2]
[390488628,1760062250809,-500.0,0.00016773,2]
[390488630,1760062250819,-627.54677909,0.00016773,2]
[390488632,1760062250828,-501.05544168,0.00016773,2]
[390488634,1760062250837,-500.0,0.00016773,2]
[390488636,1760062250846,-500.0,0.00016773,2]
[390488638,1760062250855,-500.0,0.00016773,2]
[390488640,1760062250864,-642.55581265,0.00016773,2]
[390488642,1760062250873,-505.45386967,0.00016773,2]
[390488644,1760062250882,-500.0,0.00016773,2]
[390488646,1760062250891,-500.2802922,0.00016773,2]
[390488648,1760062250900,-500.0,0.00016773,2]
[390488650,1760062250909,-498.33544719,0.00016773,2]
[390488652,1760062250921,-500.0,0.00016773,2]
[390488654,1760062250930,-165.24160476,0.00016773,2]
[390488656,1760062250940,-500.0,0.00016773,2]
[390488658,1760062250949,-500.0,0.00016773,2]
[390488660,1760062250958,-214.21809975,0.00016773,2]
[390488663,1760062250968,-500.0,0.00016773,2]
[390488664,1760062250977,-500.34845163,0.00016773,2]
[390488666,1760062250986,-500.0,0.00016773,2]
[390488669,1760062250995,-501.28009836,0.00016773,2]
[390488671,1760062251005,-500.0,0.00016773,2]
[390488673,1760062251014,-500.68579549,0.00016773,2]
[390488675,1760062251023,-500.0,0.00016773,2]
[390488677,1760062251032,-500.0,0.00016773,2]
[390488679,1760062251042,-500.0,0.00016773,2]
[390488681,1760062251050,-500.0,0.00016773,2]
[390488682,1760062251059,-500.0,0.00016773,2]
[390488684,1760062251068,-500.0,0.00016773,2]
[390488687,1760062251077,-500.0,0.00016773,2]
[390488688,1760062251087,-500.0,0.00016773,2]
[390488690,1760062251096,-500.0,0.00016773,2]
[390488692,1760062251105,-500.48843983,0.00016773,2]
[390488694,1760062251114,-501.76080862,0.00016773,2]
[390488696,1760062251124,-500.0,0.00016773,2]
[390488698,1760062251138,-500.86991837,0.00016773,2]
[390488700,1760062251147,-500.0,0.00016773,2]
[390488702,1760062251155,-502.34380537,0.00016773,2]
[390488704,1760062251164,-500.0,0.00016773,2]
[390488706,1760062251174,-500.0,0.00016773,2]
[390488708,1760062251183,-500.0,0.00016773,2]
[390488710,1760062251192,-500.0,0.00016773,2]
[390488712,1760062251202,-500.0,0.00016773,2]
[390488714,1760062251212,-500.0,0.00016773,2]
[390488716,1760062251221,-161.86847584,0.00016773,2]
[390488718,1760062251230,-500.0,0.00016773,2]
[390488721,1760062251239,-500.0,0.00016773,2]
[390488723,1760062251249,-500.0,0.00016773,2]
[390488724,1760062251258,-157.30324439,0.00016773,2]
[390488727,1760062251267,-500.0,0.00016773,2]
[390488728,1760062251276,-151.0,0.00016773,2]
[390488731,1760062251285,-500.0,0.00016799,2]
[390488732,1760062251295,-1000.02,0.000168,2]
[390488735,1760062251304,-1000.0,0.000168,3]
[390488736,1760062251313,-943.12,0.000168,4]
[390488738,1760062251323,-3014.05827318,0.00016886,2]
[390488740,1760062251332,-500.0,0.00016886,2]
[390488742,1760062251342,-222.55715187,0.00016959,3]
[390488744,1760062251351,-152.275113,0.00016985,2]
[390488746,1760062251360,-151.0,0.00016985,2]
[390488748,1760062251369,-151.386704,0.00016985,2]
[390488750,1760062251378,-500.0,0.00016985,2]
[390488752,1760062251386,-500.0,0.00016985,2]
[390488754,1760062251396,-500.0,0.00016985,2]
[390488756,1760062251404,-151.0,0.00016985,2]
[390488758,1760062251413,-198.53832505,0.00016986,2]
[390488760,1760062251422,-500.0,0.00016986,2]
[390488762,1760062251431,-1519.0,0.00016986,2]
[390488764,1760062251440,-325.93345763,0.00016986,2]
[390488766,1760062251450,-500.0,0.00016986,2]
[390488768,1760062251459,-154.020421,0.00016986,2]
[390488770,1760062251467,-505.37377819,0.00016986,2]
[390488772,1760062251476,-151.0,0.00016986,2]
[390488774,1760062251485,-500.0,0.00016986,2]
[390488776,1760062251494,-505.66103417,0.00016986,2]
[390488779,1760062251504,-500.0,0.00016986,2]
[390488781,1760062251514,-504.39754967,0.00016986,2]
[390488783,1760062251522,-500.0,0.00016986,2]
[390488785,1760062251532,-500.0,0.00016986,2]
[390488787,1760062251540,-500.0,0.00016986,2]
[390488788,1760062251549,-504.34556787,0.00016986,2]
[390488790,1760062251558,-502.21924966,0.00016986,2]
[390488792,1760062251568,-502.13180974,0.00016986,2]
[390488795,1760062251577,-500.0,0.00016986,2]
[390488796,1760062251586,-500.0,0.00016986,2]
[390488799,1760062251595,-1245.57,0.00016986,2]
[390488800,1760062251605,-503.57841351,0.00016986,2]
[390488802,1760062251614,-510.49240647,0.00016986,2]
[390488805,1760062251623,-500.0,0.00016986,2]
[390488807,1760062251633,-500.0,0.00016986,2]
[390488808,1760062251642,-504.43861345,0.00016986,2]
[390488810,1760062251651,-505.21420364,0.00016986,2]
[390488813,1760062251660,-507.12814916,0.00016986,2]
[390488815,1760062251670,-500.08188587,0.00016986,2]
[390488817,1760062251679,-500.0,0.00016986,2]
[390488819,1760062251688,-500.0,0.00016986,2]
[390488821,1760062251698,-500.0,0.00016986,2]
[390488823,1760062251707,-500.0,0.00016986,2]
[390488825,1760062251716,-508.52919726,0.00016986,2]
[390488827,1760062251725,-1210.06,0.00016986,2]
[390488829,1760062251735,-500.0,0.00016986,2]
[390488831,1760062251745,-500.0,0.00016986,2]
[390488833,1760062251754,-237.03579155,0.00016986,2]
[390488835,1760062251764,-508.38469437,0.00016986,2]
[390488837,1760062251773,-505.43836431,0.00016986,2]
[390488839,1760062251782,-500.0,0.00016986,2]
[390488841,1760062251792,-500.0,0.00016986,2]
[390488843,1760062251801,-612.56,0.00016986,2]
[390488844,1760062251810,-210.972605,0.00016986,2]
[390488845,1760062251819,-505.20712614,0.00016986,2]
[390488846,1760062251827,-210.972605,0.00016986,2]
[390488847,1760062251836,-210.972605,0.00016986,2]
[390488848,1760062251845,-210.972602,0.00016986,2]
[390488849,1760062251854,-504.83435143,0.00016986,2]
[390488850,1760062251863,-500.0,0.00016986,2]
[390488851,1760062251872,-500.0,0.00016986,2]
[390488852,1760062251881,-500.0,0.00016986,2]
[390488854,1760062251890,-500.0,0.00016986,2]
[390488856,1760062251899,-500.0,0.00016986,2]
[390488858,1760062251908,-500.0,0.00016986,2]
[390488860,1760062251917,-500.0,0.00016986,2]
[390488862,1760062251926,-500.0,0.00016986,2]
[390488864,1760062251936,-500.0,0.00016986,2]
[390488866,1760062251945,-500.0,0.00016986,2]
[390488868,1760062251955,-500.0,0.00016986,2]
[390488870,1760062251964,-500.0,0.00016986,2]
[390488872,1760062251973,-500.0,0.00016986,2]
[390488874,1760062251982,-462.20778594,0.00016986,2]
[390488876,1760062251991,-603.61395442,0.00016986,2]
[390488878,1760062252001,-448.918874,0.00016986,2]
[390488880,1760062252011,-213.990539,0.00016986,2]
[390488882,1760062252020,-500.0,0.00016986,2]
[390488884,1760062252029,-500.0,0.00016986,2]
[390488886,1760062252040,-500.0,0.00016986,2]
[390488888,1760062252049,-752.35,0.00016986,2]
[390488890,1760062252058,-500.0,0.00016986,2]
[390488892,1760062252067,-500.0,0.00016986,2]
[390488894,1760062252078,-504.06460321,0.00016986,2]
[390488896,1760062252087,-3418.43,0.00016986,2]
[390488898,1760062252097,-500.0,0.00016986,2]
[390488900,1760062252106,-500.0,0.00016986,2]
[390488902,1760062252115,-500.0,0.00016986,2]
[390488904,1760062252124,-502.68734328,0.00016986,2]
[390488907,1760062252135,-500.0,0.00016986,2]
[390488908,1760062252145,-500.0,0.00016986,2]
[390488910,1760062252154,-500.0,0.00016986,2]
[390488913,1760062252164,-589.5473066,0.00016986,2]
[390488914,1760062252174,-500.0,0.00016986,2]
[390488917,1760062252183,-500.0,0.00016986,2]
[390488919,1760062252192,-502.03919439,0.00016986,2]
[390488920,1760062252201,-500.0,0.00016986,2]
[390488922,1760062252212,-500.66305719,0.00016986,2]
[390488924,1760062252221,-500.0,0.00016986,2]
[390488926,1760062252230,-1127.86,0.00016986,2]
[390488929,1760062252240,-501.75503013,0.00016986,2]
[390488931,1760062252250,-500.0,0.00016986,2]
[390488933,1760062252259,-500.0,0.00016986,2]
[390488935,1760062252268,-500.0,0.00016986,2]
[390488937,1760062252277,-500.0,0.00016986,2]
[390488939,1760062252287,-500.0,0.00016986,2]
[390488940,1760062252296,-500.0,0.00016986,2]
[390488943,1760062252305,-500.0,0.00016986,2]
[390488945,1760062252314,-1763.47,0.00016986,2]
[390488947,1760062252323,-510.09772872,0.00016986,2]
[390488948,1760062252331,-1054.65,0.00016986,2]
[390488951,1760062252340,-500.0,0.00016986,2]
[390488952,1760062252350,-500.0,0.00016986,2]
[390488955,1760062252359,-552.73831368,0.00016986,2]
[390488957,1760062252368,-501.09598001,0.00016986,2]
[390488959,1760062252378,-500.0,0.00016986,2]
[390488961,1760062252387,-500.0,0.00016986,2]
[390488963,1760062252396,-1569.08,0.00016986,2]
[390488965,1760062252405,-523.93930145,0.00016986,2]
[390488967,1760062252413,-500.0,0.00016986,2]
[390488969,1760062252422,-502.38203244,0.00016986,2]
[390488971,1760062252431,-5017.48,0.00016986,2]
[390488973,1760062252440,-2494.24,0.00016986,2]
[390488975,1760062252449,-500.0,0.00016986,2]
[390488977,1760062252458,-607.14,0.00016986,2]
[390488979,1760062252467,-856.77,0.00016986,2]
[390488981,1760062252475,-2861.75,0.00016986,2]
[390488983,1760062252484,-505.20872062,0.00016986,2]
[390488985,1760062252493,-335.48160139,0.00016986,2]
[390488987,1760062252503,-500.0,0.00016986,2]
[390488988,1760062252512,-500.0,0.00016986,2]
[390488990,1760062252521,-500.0,0.00016986,2]
[390488992,1760062252530,-836.52,0.00016986,2]
[390488995,1760062252539,-4122.15,0.00016986,2]
[390488996,1760062252547,-500.0,0.00016986,2]
[390488998,1760062252556,-500.0,0.00016986,2]
[390489000,1760062252565,-600.72,0.00016986,2]
[390489003,1760062252575,-500.0,0.00016986,2]
[390489004,1760062252584,-481.31449246,0.00016986,2]
[390489007,1760062252593,-500.0,0.00016986,2]
[390489009,1760062252602,-500.0,0.00016986,2]
[390489010,1760062252611,-500.0,0.00016986,2]
[390489012,1760062252620,-500.0,0.00016986,2]
[390489014,1760062252629,-1629.25,0.00016986,2]
[390489017,1760062252639,-574.29,0.00016986,2]
[390489019,1760062252649,-501.57742464,0.00016986,2]
[390489020,1760062252658,-516.47,0.00016986,2]
[390489022,1760062252667,-500.0,0.00016986,2]
[390489025,1760062252677,-582.83,0.00016986,2]
[390489026,1760062252686,-500.0,0.00016986,2]
[390489029,1760062252695,-500.0,0.00016986,2]
[390489030,1760062252705,-500.0,0.00016986,2]
[390489033,1760062252714,-500.0,0.00016986,2]
[390489035,1760062252724,-527.83,0.00016986,2]
[390489037,1760062252733,-531.14,0.00016986,2]
[390489038,1760062252743,-594.27,0.00016986,2]
[390489041,1760062252753,-500.0,0.00016986,2]
[390489043,1760062252762,-501.11596704,0.00016986,2]
[390489044,1760062252771,-500.0,0.00016986,2]
[390489047,1760062252781,-500.0,0.00016986,2]
[390489049,1760062252790,-501.66725245,0.00016986,2]
[390489051,1760062252800,-500.0,0.00016986,2]
[390489052,1760062252809,-500.0,0.00016986,2]
[390489055,1760062252818,-500.0,0.00016986,2]
[390489056,1760062252827,-558.33584638,0.00016986,2]
[390489058,1760062252836,-1001.96,0.00016986,2]
[390489060,1760062252845,-500.0,0.00016986,2]
[390489062,1760062252854,-322.9958514,0.00016986,2]
[390489064,1760062252863,-500.0,0.00016986,2]
[390489066,1760062252873,-500.0,0.00016986,2]
[390489068,1760062252882,-1252.45,0.00016986,2]
[390489070,1760062252891,-585.01,0.00016986,2]
[390489072,1760062252900,-500.0,0.00016986,2]
[390489074,1760062252909,-500.0,0.00016986,2]
[390489076,1760062252918,-875.11,0.00016986,2]
[390489078,1760062252927,-501.18658578,0.00016986,2]
[390489080,1760062252936,-2256.89,0.00016986,2]
[390489082,1760062252945,-500.0,0.00016986,2]
[390489085,1760062252954,-501.07654025,0.00016986,2]
[390489087,1760062252963,-500.0,0.00016986,2]
[390489088,1760062252972,-500.0,0.00016986,2]
[390489090,1760062252981,-641.15923511,0.00016986,2]
[390489093,1760062252991,-4501.37,0.00016986,2]
[390489107,1760062253139,-500.0,0.00016986,2]
[390489109,1760062253150,-508.11170626,0.00016986,2]
[390489111,1760062253159,-500.0,0.00016986,2]
[390489113,1760062253169,-500.0,0.00016986,2]
[390489115,1760062253178,-740.47,0.00016986,2]
[390489117,1760062253188,-3315.68,0.00016986,2]
[390489119,1760062253197,-500.0,0.00016986,2]
[390489121,1760062253209,-501.79847167,0.00016986,2]
[390489123,1760062253218,-500.0,0.00016986,2]
[390489125,1760062253227,-500.0,0.00016986,2]
[390489127,1760062253236,-500.0,0.00016986,2]
[390489129,1760062253247,-505.32242365,0.00016986,2]
[390489131,1760062253256,-1305.48,0.00016986,2]
[390489133,1760062253265,-500.0,0.00016986,2]
[390489135,1760062253274,-500.0,0.00016986,2]
[390489137,1760062253283,-500.0,0.00016986,2]
[390489139,1760062253292,-688.76,0.00016986,2]
[390489141,1760062253301,-500.67279678,0.00016986,2]
[390489143,1760062253310,-3718.85,0.00016986,2]
[390489145,1760062253319,-502.10397334,0.00016986,2]
[390489147,1760062253328,-866.24,0.00016986,2]
[390489149,1760062253337,-502.33835754,0.00016986,2]
[390489151,1760062253347,-547.86,0.00016986,2]
[390489153,1760062253356,-504.80845623,0.00016986,2]
[390489155,1760062253365,-500.0,0.00016986,2]
[390489157,1760062253375,-500.0,0.00016986,2]
[390489159,1760062253383,-500.0,0.00016986,2]
[390489161,1760062253392,-500.0,0.00016986,2]
[390489163,1760062253401,-503.11882151,0.00016986,2]
[390489165,1760062253410,-1530.51,0.00016986,2]
[390489167,1760062253419,-500.0,0.00016986,2]
[390489169,1760062253428,-643.65,0.00016986,2]
[390489171,1760062253437,-500.0,0.00016986,2]
[390489173,1760062253446,-500.0,0.00016986,2]
[390489175,1760062253455,-591.26,0.00016986,2]
[390489177,1760062253464,-500.0,0.00016986,2]
[390489179,1760062253473,-500.0,0.00016986,2]
[390489181,1760062253482,-500.0,0.00016986,2]
[390489183,1760062253491,-619.79,0.00016986,2]
[390489185,1760062253501,-503.08633927,0.00016986,2]
[390489187,1760062253510,-500.0,0.00016986,2]
[390489188,1760062253519,-1403.92,0.00016986,2]
[390489190,1760062253528,-500.0,0.00016986,2]
[390489192,1760062253537,-553.39,0.00016986,2]
[390489194,1760062253547,-787.69,0.00016986,2]
[390489196,1760062253556,-500.0,0.00016986,2]
[390489198,1760062253565,-500.0,0.00016986,2]
[390489200,1760062253574,-500.0,0.00016986,2]
[390489202,1760062253583,-500.0,0.00016986,2]
[390489204,1760062253592,-501.64170303,0.00016986,2]
[390489206,1760062253603,-1406.28,0.00016986,2]
[390489208,1760062253618,-500.0,0.00016986,2]
[390489210,1760062253627,-503.73678477,0.00016986,2]
[390489212,1760062253636,-502.92534349,0.00016986,2]
[390489214,1760062253646,-687.31,0.00016986,2]
[390489216,1760062253655,-507.83874882,0.00016986,2]
[390489218,1760062253665,-500.0,0.00016986,2]
[390489220,1760062253674,-500.0,0.00016986,2]
[390489222,1760062253683,-519.6,0.00016986,2]
[390489224,1760062253693,-500.0,0.00016986,2]
[390489226,1760062253703,-500.0,0.00016986,2]
[390489228,1760062253713,-500.0,0.00016986,2]
[390489230,1760062253723,-2471.41,0.00016986,2]
[390489232,1760062253732,-500.0,0.00016986,2]
[390489234,1760062253742,-500.0,0.00016986,2]
[390489236,1760062253751,-505.39857899,0.00016986,2]
[390489238,1760062253761,-500.0,0.00016986,2]
[390489240,1760062253771,-501.10395963,0.00016986,2]
[390489242,1760062253781,-500.0,0.00016986,2]
[390489244,1760062253790,-1763.79,0.00016986,2]
[390489246,1760062253800,-500.0,0.00016986,2]
[390489248,1760062253816,-448.918874,0.00017,4]
[390489250,1760062253826,-213.990539,0.00017,4]
[390489252,1760062253835,-500.0,0.0001716,2]
[390489254,1760062253845,-10000.0,0.0001716,2]
[390489256,1760062253855,-862.4654822,0.0001716,2]
[390489258,1760062253864,-3014.05827318,0.0001716,2]
[390489260,1760062253873,-512.38155997,0.00017189,2]
[390489262,1760062253882,-151.0,0.000172,2]
[390489264,1760062253891,-444.9475482,0.00017233,2]
[390489266,1760062253900,-500.0,0.00017259,2]
[390489268,1760062253909,-500.0,0.00017259,2]
[390489270,1760062253918,-200.0,0.00017259,2]
[390489272,1760062253927,-500.0,0.0001726,2]
[390489274,1760062253937,-1519.0,0.0001726,2]
[390489276,1760062253946,-500.0,0.0001726,2]
[390489278,1760062253955,-152.507168,0.0001726,2]
[390489280,1760062253964,-506.95020375,0.0001726,2]
[390489282,1760062253973,-504.57924601,0.0001726,2]
[390489284,1760062253982,-500.0,0.0001726,2]
[390489285,1760062253991,-500.0,0.0001726,2]